bitfinex/quotes_SOLUSD_20260103
["timestamp","ask_amount","ask_price","bid_price","bid_amount"]
[1767452725746,9.40364176,131.74,131.7,0.7167397]
[1767452725947,1.81293279,131.73,131.69,0.7167397]
[1767452727669,1.81293279,131.73,131.7,0.7167397]
[1767452728868,7.59135376,131.73,131.7,0.7167397]
[1767452729256,139.61366633,131.8,131.73,0.7167397]
[1767452729566,1.81293279,131.77,131.74,0.7167397]
[1767452729954,1.81293279,131.78,131.74,0.7167397]
[1767452730561,40.41768814,131.79,131.74,0.7167397]
[1767452730763,1.81293279,131.78,131.74,0.7167397]
[1767452731061,21.44782912,131.79,131.75,0.66274111]
[1767452731268,23.26076191,131.79,131.75,0.66274111]
[1767452731566,7.58730775,131.8,131.77,0.66274111]
[1767452731943,23.25961581,131.81,131.77,0.66274111]
[1767452733673,23.25961581,131.81,131.77,8.25170357]
[1767452736157,23.25961581,131.81,131.78,0.66274111]
[1767452740077,9.39961581,131.81,131.78,0.66274111]
[1767452740281,23.25961581,131.81,131.78,0.66274111]
[1767452742081,21.44668302,131.81,131.78,0.66274111]
[1767452742263,23.25961581,131.81,131.78,0.66274111]
[1767452742780,9.39961581,131.81,131.78,0.66274111]
[1767452742983,23.25961581,131.81,131.78,0.66274111]
[1767452743685,21.44668302,131.81,131.78,0.66274111]
[1767452743877,23.25961581,131.81,131.78,0.66274111]
[1767452746291,21.44668302,131.81,131.78,0.66274111]
[1767452746492,23.25961581,131.81,131.78,0.66274111]
[1767452747694,7.58618532,131.82,131.79,0.66274111]
[1767452747881,15.67293279,131.83,131.79,0.66274111]
[1767452748783,13.86,131.83,131.79,0.66274111]
[1767452748992,15.67293279,131.83,131.79,0.66274111]
[1767452749168,23.2586492,131.83,131.79,0.66274111]
[1767452750201,23.2586492,131.83,131.8,0.66274111]
[1767452750493,21.44571641,131.83,131.8,0.66274111]
[1767452751598,23.2586492,131.83,131.8,0.66274111]
[1767452752205,9.3986492,131.83,131.8,0.66274111]
[1767452752490,23.2586492,131.83,131.8,0.66274111]
[1767452753293,1.81293279,131.82,131.8,0.66274111]
[1767452762500,9.39905389,131.82,131.79,0.71610654]
[1767452772899,23.23905389,131.82,131.79,0.71610654]
[1767452774527,21.4261211,131.82,131.79,0.71610654]
[1767452774826,1.81293279,131.81,131.79,0.71610654]
[1767452776393,21.4261211,131.82,131.79,0.71610654]
[1767452776925,23.23905389,131.82,131.79,0.71610654]
[1767452781535,21.4261211,131.82,131.79,0.71610654]
[1767452788138,24.25623283,131.82,131.79,0.71610654]
[1767452788326,24.93524797,131.82,131.76,26.5627317]
[1767452788729,0.67362779,131.8,131.76,7.58955676]
[1767452788934,0.67362779,131.8,131.72,8.35013837]
[1767452788935,0.66834765,131.78,131.72,2.83011173]
[1767452789247,17.33845938,131.78,131.73,2.83011173]
[1767452790042,17.33845938,131.78,131.74,7.59032283]
[1767452790244,17.33845938,131.78,131.75,0.68050567]
[1767452790823,8.30551557,131.79,131.75,0.68050567]
[1767452791025,13.84,131.78,131.75,0.68050567]
[1767452791827,13.84,131.78,131.76,0.68050567]
[1767452793842,16.67011173,131.78,131.76,0.68050567]
[1767452795340,16.67011173,131.78,131.74,7.59070897]
[1767452795532,3.54128507,131.77,131.74,7.59070897]
[1767452795737,3.54128507,131.77,131.74,8.27121464]
[1767452795940,0.71117334,131.77,131.74,8.27121464]
[1767452796323,24.97590494,131.78,131.75,0.68050567]
[1767452799045,13.84,131.78,131.75,0.68050567]
[1767452799244,10.4180316,131.79,131.76,0.68050567]
[1767452799427,10.52038694,131.79,131.76,0.68050567]
[1767452799627,10.52038694,131.79,131.75,8.27043534]
[1767452799628,0.71117334,131.78,131.75,8.27043534]
[1767452799830,24.2780316,131.79,131.76,0.68050567]
[1767452803145,21.44791987,131.79,131.76,0.68050567]
[1767452803337,24.2780316,131.79,131.76,0.68050567]
[1767452806247,0.71117334,131.78,131.75,8.27043534]
[1767452809435,24.99535461,131.79,131.76,0.68050567]
[1767452809935,22.16524288,131.79,131.76,0.68050567]
[1767452810236,21.44791987,131.79,131.76,0.68050567]
[1767452810844,21.55027521,131.79,131.76,0.68050567]
[1767452811351,0.71732301,131.8,131.77,0.68050567]
[1767452811557,18.96458498,131.83,131.77,0.68050567]
[1767452811558,13.86,131.81,131.77,0.68050567]
[1767452813041,2.83011173,131.79,131.76,0.68050567]
[1767452813236,2.93855525,131.8,131.76,0.68050567]
[1767452813441,2.83011173,131.8,131.76,0.68050567]
[1767452813852,16.69011173,131.8,131.76,0.68050567]
[1767452814255,16.69011173,131.8,131.76,8.26987703]
[1767452814553,16.69011173,131.8,131.77,0.68050567]
[1767452815763,13.86,131.8,131.77,0.68050567]
[1767452815967,16.69011173,131.8,131.77,0.68050567]
[1767452816658,24.27747006,131.8,131.77,0.68050567]
[1767452817745,2.83011173,131.79,131.77,0.68050567]
[1767452820265,24.3798254,131.8,131.77,0.68050567]
[1767452821563,2.83011173,131.79,131.77,0.62050567]
[1767452821768,0.65526975,131.77,131.71,18.97996467]
[1767452821968,3.48538148,131.77,131.71,35.6700764]
[1767452822165,2.83011173,131.76,131.72,7.59166914]
[1767452822364,2.83011173,131.75,131.71,21.45225912]
[1767452822556,2.83011173,131.75,131.71,7.59225912]
[1767452823055,2.83011173,131.73,131.68,13.86]
[1767452823264,2.83011173,131.72,131.68,13.86]
[1767452823585,2.83011173,131.71,131.68,0.65379539]
[1767452823750,7.59186152,131.72,131.68,0.65379539]
[1767452823947,2.83011173,131.71,131.68,0.65379539]
[1767452827448,3.06587895,131.71,131.68,0.65379539]
[1767452830481,10.65839951,131.71,131.67,8.24833335]
[1767452830860,2.83011173,131.7,131.67,8.24833335]
[1767452831168,11.06166278,131.7,131.67,0.65379539]
[1767452831575,10.42316721,131.7,131.67,0.65379539]
[1767452832361,10.64635528,131.7,131.67,0.65379539]
[1767452833464,10.42316721,131.7,131.67,0.65379539]
[1767452833658,10.64635528,131.7,131.67,0.65379539]
[1767452834878,7.81624355,131.7,131.67,0.65379539]
[1767452835077,10.64635528,131.7,131.67,0.65379539]
[1767452835377,3.48106066,131.69,131.65,0.65379539]
[1767452835575,3.05757741,131.68,131.65,0.65379539]
[1767452836476,0.22746568,131.68,131.65,0.65379539]
[1767452836654,3.05757741,131.68,131.65,0.65379539]
[1767452837772,8.24903058,131.69,131.65,8.24961849]
[1767452837958,2.83011173,131.68,131.65,8.24961849]
[1767452839655,11.07914231,131.69,131.65,8.24961849]
[1767452840385,11.07914231,131.69,131.62,94.05329503]
[1767452840386,11.07914231,131.69,131.66,0.65379539]
[1767452840685,8.24903058,131.69,131.66,0.65379539]
[1767452840851,11.07914231,131.69,131.66,0.65379539]
[1767452842271,2.83011173,131.68,131.66,0.65379539]
[1767452843975,14.51526975,131.71,131.66,0.65379539]
[1767452844182,16.69011173,131.7,131.66,0.65379539]
[1767452844369,13.86,131.7,131.66,0.65379539]
[1767452844568,15.67470995,131.7,131.66,0.65379539]
[1767452845071,15.67470995,131.7,131.66,8.24895694]
[1767452845275,0.65526975,131.71,131.67,0.65379539]
[1767452845468,1.81470995,131.71,131.67,0.65379539]
[1767452846061,16.3299797,131.73,131.68,0.65379539]
[1767452846254,0.65526975,131.73,131.69,0.65379539]
[1767452846458,2.46565888,131.71,131.67,8.24813862]
[1767452846769,2.04217563,131.7,131.67,8.24813862]
[1767452846970,1.81470995,131.7,131.67,8.24813862]
[1767452847666,22.1077645,131.71,131.67,8.24813862]
[1767452847980,1.81470995,131.7,131.67,8.24813862]
[1767452848374,1.81470995,131.7,131.68,0.65379539]
[1767452852487,23.92247445,131.71,131.68,0.65379539]
[1767452854603,0.22318807,131.7,131.67,8.2941873]
[1767452854891,23.95825904,131.71,131.68,0.69984407]
[1767452856495,14.55105434,131.71,131.68,0.69984407]
[1767452856795,16.36576429,131.71,131.68,0.69984407]
[1767452857168,0.69105434,131.71,131.68,8.29390012]
[1767452857375,15.86247128,131.72,131.69,0.69984407]
[1767452857688,15.86247128,131.72,131.69,8.29342708]
[1767452857987,0.68602141,131.71,131.69,7.59358301]
[1767452858682,0.68602141,131.71,131.68,0.69984407]
[1767452858887,2.50073136,131.71,131.68,8.2938725]
[1767452860095,0.68108863,131.69,131.66,8.29472458]
[1767452860295,2.49579858,131.69,131.66,0.69984407]
[1767452860666,1.81470995,131.69,131.66,0.69984407]
[1767452862733,0.19274393,131.68,131.65,0.69984407]
[1767452862986,2.49579858,131.67,131.64,0.69984407]
[1767452863178,2.46579859,131.67,131.64,0.69984407]
[1767452863570,0.68108863,131.67,131.64,0.69984407]
[1767452863776,2.49579858,131.67,131.64,0.69984407]
[1767452864395,1.81470995,131.66,131.64,0.69984407]
[1767452864581,1.78470996,131.66,131.64,0.69984407]
[1767452865192,7.59500396,131.67,131.64,0.69984407]
[1767452865381,9.40971391,131.67,131.64,0.69984407]
[1767452869279,9.59747524,131.67,131.64,0.69984407]
[1767452871084,7.78276529,131.67,131.64,0.69984407]
[1767452871284,9.59747524,131.67,131.64,0.69984407]
[1767452873096,10.09997245,131.68,131.65,0.69984407]
[1767452874778,2.50576429,131.68,131.65,0.69984407]
[1767452875004,10.09894009,131.7,131.66,0.69984407]
[1767452875178,23.95894009,131.7,131.66,0.69984407]
[1767452878501,23.95894009,131.7,131.67,0.69984407]
[1767452878502,16.36576429,131.7,131.67,0.69984407]
[1767452879014,15.67470995,131.7,131.67,0.69984407]
[1767452879784,15.86247128,131.7,131.67,0.69984407]
[1767452880296,1.81470995,131.69,131.67,0.69984407]
[1767452880599,1.81470995,131.7,131.68,0.66362436]
[1767452880804,2.50281304,131.72,131.68,0.60362436]
[1767452880982,16.36281304,131.72,131.68,0.60362436]
[1767452881184,16.36281304,131.72,131.68,7.59391483]
[1767452881498,23.95469286,131.72,131.68,7.59391483]
[1767452882584,23.95469286,131.72,131.68,7.53391483]
[1767452882782,23.95469286,131.72,131.68,8.19753919]
[1767452884401,2.06912941,131.69,131.66,0.66362436]
[1767452884594,1.81470995,131.69,131.66,0.63623705]
[1767452884987,2.09190645,131.7,131.66,0.63623705]
[1767452885184,15.95190645,131.7,131.66,0.63623705]
[1767452885384,0.2771965,131.7,131.66,7.59513129]
[1767452885584,23.95539377,131.71,131.66,7.59513129]
[1767452886481,23.95539377,131.71,131.68,0.66362436]
[1767452889789,1.81470995,131.7,131.68,0.66362436]
[1767452889990,23.95539377,131.71,131.68,0.66362436]
[1767452890910,1.81470995,131.7,131.68,0.66362436]
[1767452892211,23.95539377,131.71,131.68,0.66362436]
[1767452893589,2.09190645,131.7,131.67,0.66362436]
[1767452893795,0.68399402,131.69,131.66,0.66362436]
[1767452897814,0.68399402,131.69,131.66,8.25894558]
[1767452898015,0.68399402,131.69,131.67,0.66362436]
[1767452907820,0.68399402,131.69,131.66,0.66362436]
[1767452908222,10.42879244,131.7,131.66,0.66362436]
[1767452908408,11.11689553,131.7,131.66,0.66362436]
[1767452908903,2.83551268,131.69,131.66,0.66362436]
[1767452911222,11.11689553,131.7,131.67,0.68131388]
[1767452911421,8.28138285,131.7,131.67,0.68131388]
[1767452911601,11.11689553,131.7,131.67,0.68131388]
[1767452917328,8.28138285,131.7,131.67,0.68131388]
[1767452917628,11.11689553,131.7,131.67,0.68131388]
[1767452921534,8.28138285,131.7,131.67,0.68131388]
[1767452921715,11.11689553,131.7,131.67,0.68131388]
[1767452923311,24.97689553,131.7,131.67,0.68131388]
[1767452923512,22.14138285,131.7,131.67,0.68131388]
[1767452925444,24.97689553,131.7,131.67,0.68131388]
[1767452931755,2.83551268,131.69,131.64,0.68131388]
[1767452932044,2.83551268,131.68,131.64,0.68131388]
[1767452932252,0.66239407,131.67,131.64,0.68131388]
[1767452932943,2.83551268,131.68,131.65,0.68131388]
[1767452932944,11.092146,131.68,131.65,0.68131388]
[1767452933831,3.13816111,131.67,131.63,7.59701949]
[1767452934038,3.13816111,131.67,131.64,0.68131388]
[1767452935230,2.83551268,131.67,131.64,0.68131388]
[1767452935431,3.13816111,131.67,131.64,0.68131388]
[1767452936045,0.30264843,131.67,131.64,0.68131388]
[1767452936351,3.13816111,131.67,131.64,0.68131388]
[1767452936750,2.83551268,131.66,131.64,0.68131388]
[1767452936948,3.49430929,131.66,131.63,8.27833337]
[1767452940844,0.65879661,131.66,131.63,8.27833337]
[1767452942052,0.30620992,131.65,131.61,0.7001019]
[1767452942253,0.62527074,131.64,131.61,0.7001019]
[1767452943260,0.62527074,131.64,131.61,8.29809621]
[1767452945254,2.83551268,131.65,131.62,7.59744423]
[1767452945458,3.07225246,131.65,131.63,0.7001019]
[1767452951964,10.66842343,131.65,131.6,0.7001019]
[1767452952147,8.29477942,131.66,131.62,0.7001019]
[1767452952346,11.1302921,131.66,131.62,0.7001019]
[1767452953058,11.1302921,131.66,131.62,8.29737022]
[1767452953365,8.29477942,131.66,131.62,8.29737022]
[1767452953866,11.1302921,131.66,131.62,8.29737022]
[1767452958374,0.23673978,131.65,131.62,8.29737022]
[1767452959458,3.07225246,131.65,131.62,8.29737022]
[1767452959654,0.69896846,131.69,131.63,0.7001019]
[1767452959850,0.69434618,131.67,131.64,0.7001019]
[1767452961269,0.69434618,131.67,131.64,8.29649521]
[1767452961874,3.52985886,131.67,131.64,8.29649521]
[1767452963968,0.69434618,131.67,131.65,0.7001019]
[1767452964861,0.69434618,131.67,131.64,8.29649521]
[1767452965054,3.52985886,131.67,131.64,8.29649521]
[1767452965256,2.83551268,131.67,131.65,0.7001019]
[1767452965469,3.53448114,131.68,131.65,0.7001019]
[1767452965850,0.23673978,131.67,131.65,0.7001019]
[1767452967773,0.23673978,131.67,131.64,8.29649521]
[1767452968773,0.23673978,131.67,131.65,0.7001019]
[1767452969078,2.05204664,131.67,131.64,0.7001019]
[1767452971473,0.23673978,131.67,131.64,0.7001019]
[1767452971674,2.05204664,131.67,131.64,0.7001019]
[1767452980884,0.23673978,131.67,131.64,0.7001019]
[1767452981085,2.05204664,131.67,131.64,0.7001019]
[1767452982586,1.81530686,131.67,131.64,0.7001019]
[1767452982785,9.40985836,131.68,131.64,0.7001019]
[1767452982963,9.66210539,131.68,131.64,0.7001019]
[1767452983163,2.49430086,131.67,131.64,0.7001019]
[1767452983362,0.2565145,131.66,131.64,0.7001019]
[1767452984665,0.2565145,131.66,131.63,0.72317689]
[1767452984988,2.49861144,131.66,131.63,0.72317689]
[1767452985371,1.81530686,131.65,131.63,0.72317689]
[1767452987693,0.68330458,131.68,131.64,0.72317689]
[1767452989297,0.68330458,131.68,131.65,0.72317689]
[1767452989499,0.68330458,131.68,131.65,0.66317689]
[1767452989681,2.49861144,131.68,131.65,0.66317689]
[1767452995209,1.81530686,131.67,131.65,0.66317689]
[1767452996088,0.68330458,131.68,131.65,0.66317689]
[1767452996284,1.81530686,131.67,131.65,0.66317689]
[1767452996803,0.68330458,131.68,131.65,0.66317689]
[1767452997004,1.81530686,131.67,131.65,0.66317689]
[1767453001417,5.73682311,131.65,131.64,7.5962722]
[1767453002505,0.70392901,131.69,131.64,9.41157906]
[1767453002699,4.66290716,131.71,131.67,1.81530686]
[1767453002902,0.70392901,131.71,131.66,1.81530686]
[1767453004887,0.70392901,131.7,131.66,9.4101445]
[1767453005709,0.70392901,131.7,131.66,7.59483764]
[1767453005904,0.70392901,131.7,131.66,9.4101445]
[1767453006102,0.70392901,131.72,131.68,1.81530686]
[1767453006299,0.70392901,131.72,131.67,1.81530686]
[1767453006903,0.70392901,131.71,131.67,9.40952911]
[1767453007785,9.40674634,131.73,131.67,9.40952911]
[1767453007990,10.11067535,131.73,131.67,9.40952911]
[1767453008392,0.70392901,131.72,131.66,26.58362448]
[1767453008603,2.51923587,131.72,131.67,1.81530686]
[1767453010613,2.51923587,131.72,131.68,7.59416767]
[1767453013328,0.70392901,131.71,131.68,7.59416767]
[1767453014414,0.70392901,131.71,131.66,26.58362448]
[1767453014600,0.70392901,131.71,131.67,1.81530686]
[1767453014795,0.70392901,131.71,131.66,26.58362448]
[1767453014997,0.70392901,131.7,131.66,28.39893134]
[1767453015227,0.70392901,131.69,131.66,7.59532128]
[1767453016999,1.81530686,131.68,131.65,7.59589821]
[1767453017320,0.70392901,131.69,131.65,7.59589821]
[1767453017521,2.51923587,131.68,131.65,7.59589821]
[1767453018032,1.81530686,131.67,131.65,7.59589821]
[1767453018210,2.51923587,131.67,131.65,7.59589821]
[1767453020102,1.81530686,131.67,131.65,7.59589821]
[1767453021830,1.81530686,131.67,131.64,18.99075754]
[1767453022131,1.78530687,131.67,131.64,18.99075754]
[1767453023932,0.70392901,131.68,131.64,18.99075754]
[1767453024121,1.81530686,131.67,131.64,18.99075754]
[1767453025230,1.78530687,131.67,131.64,18.99075754]
[1767453026936,2.48923588,131.67,131.64,18.99075754]
[1767453028529,3.54023258,131.67,131.64,18.99075754]
[1767453028840,0.70392901,131.66,131.64,18.99075754]
[1767453029038,0.67392902,131.66,131.64,18.99075754]
[1767453029531,2.83630357,131.67,131.64,19.02075753]
[1767453030539,2.83630357,131.67,131.59,23.35013837]
[1767453030540,2.83630357,131.65,131.61,7.62820681]
[1767453030844,2.83630357,131.64,131.61,7.62820681]
[1767453031130,3.49863467,131.64,131.61,7.62820681]
[1767453032308,3.49863467,131.64,131.61,19.02551704]
[1767453033506,0.6623311,131.64,131.61,19.02551704]
[1767453034807,3.49863467,131.64,131.61,19.02551704]
[1767453035122,2.83630357,131.64,131.62,0.02999999]
[1767453035617,2.83630357,131.64,131.61,18.99551705]
[1767453035618,3.49863467,131.64,131.61,19.02551704]
[1767453038530,3.49863467,131.64,131.61,0.02999999]
[1767453045239,0.63233111,131.64,131.61,0.02999999]
[1767453045445,3.46863468,131.64,131.61,0.02999999]
[1767453052022,3.43863469,131.64,131.61,0.02999999]
[1767453052827,0.60233112,131.64,131.61,0.02999999]
[1767453053028,3.43863469,131.64,131.61,0.02999999]
[1767453058737,3.4086347,131.64,131.61,0.02999999]
[1767453061160,0.57233113,131.64,131.61,0.02999999]
[1767453061660,0.54233114,131.64,131.61,0.02999999]
[1767453062555,0.54233114,131.64,131.61,7.74820677]
[1767453063364,7.59433505,131.68,131.62,0.69233109]
[1767453063557,2.83630357,131.66,131.62,0.69233109]
[1767453065363,3.49636018,131.66,131.63,7.59705234]
[1767453065545,3.46636017,131.66,131.63,7.59705234]
[1767453065747,0.66005661,131.65,131.63,7.59705234]
[1767453065942,0.66005661,131.65,131.6,2.83630357]
[1767453065943,0.66005661,131.63,131.59,0.69233109]
[1767453066151,0.66005661,131.62,131.59,0.69233109]
[1767453066670,3.49636018,131.63,131.59,0.69233109]
[1767453067034,2.83630357,131.62,131.59,0.69233109]
[1767453067238,2.83630357,131.62,131.6,0.69233109]
[1767453068948,0.66005661,131.61,131.59,7.59886109]
[1767453069261,0.66005661,131.61,131.58,8.29227029]
[1767453074042,2.83630357,131.62,131.59,0.69233109]
[1767453074043,3.49636018,131.62,131.59,0.69233109]
[1767453074452,3.49636018,131.62,131.59,8.29166052]
[1767453075764,2.83630357,131.61,131.59,8.29166052]
[1767453075945,3.49636018,131.61,131.59,0.69233109]
[1767453076144,0.66005661,131.61,131.59,0.69233109]
[1767453076355,3.49636018,131.62,131.59,0.69233109]
[1767453078047,0.66005661,131.61,131.59,0.69233109]
[1767453078246,0.66005661,131.61,131.58,8.29217793]
[1767453080659,3.49636018,131.61,131.58,8.29217793]
[1767453080859,0.66005661,131.6,131.58,8.29217793]
[1767453081563,0.66005661,131.6,131.56,14.55233109]
[1767453081756,3.49636018,131.59,131.56,8.29285697]
[1767453081961,0.66005661,131.58,131.56,7.60052588]
[1767453083352,0.66005661,131.58,131.55,8.29384254]
[1767453084270,0.099,131.55,131.48,0.71891341]
[1767453084472,2.83630357,131.54,131.49,0.71891341]
[1767453084857,2.93530357,131.55,131.5,0.71891341]
[1767453085175,2.93530357,131.55,131.51,0.71891341]
[1767453086058,2.93530357,131.55,131.51,8.32251557]
[1767453087074,2.93530357,131.55,131.52,0.71891341]
[1767453089257,3.39636018,131.58,131.54,0.71891341]
[1767453089600,0.56005661,131.58,131.54,0.71891341]
[1767453090267,0.56005661,131.58,131.54,3.55521698]
[1767453090448,0.56005661,131.58,131.54,0.71891341]
[1767453091555,0.56005661,131.58,131.54,22.20103784]
[1767453092978,1.91656119,131.57,131.54,14.59891341]
[1767453094279,1.81756119,131.56,131.54,14.59891341]
[1767453094478,0.55544604,131.56,131.54,13.88]
[1767453094678,2.37300723,131.56,131.54,13.88]
[1767453094879,0.55544604,131.56,131.54,13.88]
[1767453095384,2.37300723,131.56,131.54,13.88]
[1767453095686,0.10356446,131.55,131.54,13.32350785]
[1767453095862,1.81756119,131.56,131.54,13.32350785]
[1767453096883,7.60014233,131.58,131.54,13.32350785]
[1767453097074,1.81756119,131.57,131.54,13.32350785]
[1767453098710,1.81756119,131.56,131.54,13.32350785]
[1767453099185,1.81756119,131.56,131.53,0.68094314]
[1767453100587,7.60014233,131.58,131.53,0.68094314]
[1767453100791,1.81756119,131.56,131.53,0.68094314]
[1767453101480,7.60014233,131.58,131.53,0.68094314]
[1767453101686,1.81756119,131.56,131.53,0.68094314]
[1767453103178,1.81756119,131.6,131.55,0.68094314]
[1767453103378,1.81756119,131.59,131.55,0.68094314]
[1767453104292,1.81756119,131.59,131.55,8.28234604]
[1767453104664,7.59867816,131.61,131.55,8.28234604]
[1767453104865,1.81756119,131.59,131.55,8.28234604]
[1767453107386,1.81756119,131.59,131.56,0.68094314]
[1767453108300,1.81756119,131.58,131.56,0.68094314]
[1767453108898,1.81756119,131.57,131.56,0.68094314]
[1767453115002,1.81756119,131.58,131.56,0.68094314]
[1767453115388,1.81756119,131.58,131.55,0.68094314]
[1767453116795,1.81756119,131.57,131.55,0.68094314]
[1767453117484,26.59274199,131.62,131.55,0.68094314]
[1767453117697,1.81756119,131.57,131.55,0.68094314]
[1767453118903,1.81756119,131.58,131.55,0.68094314]
[1767453121282,178.254133,131.57,131.55,0.68094314]
[1767453122786,178.254133,131.57,131.55,8.28249985]
[1767453123309,178.254133,131.57,131.56,0.67205544]
[1767453123902,68.02038438,131.57,131.56,7.60109455]
[1767453124129,0.68485319,131.6,131.56,7.60109455]
[1767453125196,2.50241438,131.6,131.56,7.60109455]
[1767453125398,0.68485319,131.59,131.56,7.60109455]
[1767453127287,2.50241438,131.59,131.56,7.60109455]
[1767453129613,0.68485319,131.59,131.56,7.60109455]
[1767453129911,2.50241438,131.59,131.56,7.60109455]
[1767453134912,0.68485319,131.58,131.56,7.60109455]
[1767453135223,0.68485319,131.58,131.55,13.88]
[1767453137609,0.68485319,131.58,131.56,7.60109455]
[1767453152826,0.68008734,131.6,131.56,7.60109455]
[1767453153033,3.52010417,131.61,131.56,7.60109455]
[1767453154132,3.52010417,131.61,131.56,26.60383094]
[1767453156221,0.68008734,131.61,131.56,26.60383094]
[1767453157109,0.68008734,131.61,131.56,29.44384777]
[1767453157720,0.68008734,131.62,131.56,26.60383094]
[1767453157926,0.68008734,131.61,131.56,29.44384777]
[1767453158317,0.68008734,131.61,131.56,26.60383094]
[1767453158838,0.68008734,131.61,131.56,29.44384777]
[1767453163242,0.68008734,131.61,131.56,26.60383094]
[1767453163429,0.68008734,131.61,131.56,29.44384777]
[1767453164245,0.68008734,131.61,131.56,26.60383094]
[1767453164542,3.52010417,131.61,131.56,29.44384777]
[1767453164747,0.68008734,131.6,131.56,29.44384777]
[1767453167247,3.52010417,131.61,131.56,29.44384777]
[1767453171445,0.68008734,131.61,131.56,29.44384777]
[1767453173453,3.52010417,131.61,131.56,26.60383094]
[1767453173752,3.52010417,131.61,131.56,29.44384777]
[1767453174858,3.52010417,131.61,131.56,26.60383094]
[1767453175055,3.52010417,131.61,131.56,29.44384777]
[1767453178057,0.68008734,131.6,131.56,29.44384777]
[1767453178243,1e-08,131.6,131.57,0.45292145]
[1767453178444,1e-08,131.6,131.58,13.86]
[1767453179253,2.84001683,131.6,131.56,40.46383094]
[1767453179453,2.84001683,131.59,131.56,21.46109455]
[1767453180142,3.49753891,131.59,131.56,21.46109455]
[1767453180344,0.65752208,131.59,131.56,21.46109455]
[1767453181553,0.65752208,131.59,131.56,22.14118188]
[1767453183960,0.65752208,131.65,131.58,0.68008733]
[1767453184166,0.65752208,131.63,131.58,0.68008733]
[1767453184641,0.65752208,131.63,131.57,2.84001683]
[1767453184642,0.65752208,131.63,131.59,22.13944898]
[1767453184842,0.65752208,131.62,131.59,22.13944898]
[1767453196482,0.65752208,131.62,131.59,21.45936165]
[1767453197614,0.65752208,131.62,131.59,22.13944898]
[1767453200497,0.65752208,131.62,131.59,21.45936165]
[1767453201190,2.84001683,131.62,131.59,21.45936165]
[1767453201488,0.65752208,131.61,131.59,21.45936165]
[1767453205584,0.65752208,131.61,131.59,7.59936165]
[1767453210607,0.67039968,131.59,131.57,7.60051683]
[1767453210902,2.80391988,131.6,131.57,21.46051683]
[1767453211683,2.84001683,131.61,131.57,22.11909693]
[1767453212210,2.84001683,131.61,131.58,0.6585801]
[1767453212582,1.81705947,131.61,131.58,0.6585801]
[1767453212797,0.67039968,131.6,131.58,8.2583977]
[1767453215313,0.67039968,131.6,131.58,7.5998176]
[1767453218715,0.67039968,131.6,131.58,7.34570429]
[1767453219505,1.81705947,131.64,131.59,2.47563957]
[1767453219697,1.81705947,131.65,131.59,2.47563957]
[1767453220189,1.81705947,131.65,131.59,0.6585801]
[1767453220604,1.81705947,131.64,131.6,8.25736429]
[1767453221302,1.81705947,131.64,131.61,0.6585801]
[1767453223617,1.81705947,131.63,131.61,0.6585801]
[1767453224716,18.9875752,131.67,131.61,0.6585801]
[1767453224912,1.81705947,131.63,131.61,0.6585801]
[1767453225714,1.81705947,131.64,131.61,0.6585801]
[1767453229125,7.59599068,131.65,131.61,0.6585801]
[1767453229311,1.81705947,131.65,131.61,8.25673416]
[1767453229505,7.59542048,131.66,131.61,8.25673416]
[1767453229704,1.81705947,131.64,131.61,8.25673416]
[1767453231025,26.58231963,131.67,131.61,8.25673416]
[1767453231218,1.81705947,131.65,131.61,8.25673416]
[1767453231520,1.81705947,131.64,131.61,8.25673416]
[1767453232029,1.81705947,131.64,131.62,0.6585801]
[1767453234114,1.81705947,131.64,131.61,0.6585801]
[1767453234317,1.81705947,131.65,131.61,0.6585801]
[1767453236529,1.81705947,131.65,131.61,8.25677905]
[1767453241329,7.59564134,131.66,131.61,8.25677905]
[1767453241533,1.81705947,131.65,131.61,8.25677905]
[1767453241938,26.58231963,131.67,131.61,8.25677905]
[1767453242138,1.81705947,131.65,131.61,8.25677905]
[1767453242430,1.81705947,131.66,131.61,8.30896915]
[1767453242737,1.81705947,131.65,131.61,8.30896915]
[1767453244739,26.57958686,131.68,131.61,8.30896915]
[1767453244918,1.81705947,131.65,131.61,8.30896915]
[1767453248217,1.81705947,131.65,131.62,0.7107702]
[1767453250046,26.57958686,131.68,131.62,0.7107702]
[1767453250219,1.81705947,131.65,131.62,0.7107702]
[1767453258837,9.41320052,131.65,131.62,0.7107702]
[1767453259360,1.81705947,131.64,131.61,0.7107702]
[1767453260049,1.81705947,131.63,131.61,0.7107702]
[1767453261958,1.81705947,131.63,131.6,0.7107702]
[1767453262161,1.81705947,131.61,131.59,0.7107702]
[1767453268468,1.81705947,131.62,131.59,0.7107702]
[1767453273879,1.81705947,131.61,131.59,0.7107702]
[1767453274258,1.81705947,131.61,131.58,7.59991607]
[1767453274567,2.83934513,131.6,131.58,0.68510392]
[1767453274768,2.81202027,131.6,131.58,0.68510392]
[1767453276379,2.81202027,131.6,131.57,0.68510392]
[1767453277168,2.83934513,131.59,131.57,0.68510392]
[1767453277354,2.80935193,131.59,131.57,0.68510392]
[1767453278674,2.77935345,131.59,131.57,0.68510392]
[1767453279773,2.83934513,131.58,131.56,0.68510392]
[1767453282572,2.83934513,131.57,131.56,0.68510392]